lending/lending_fUSD_20240110
["ID","MTS","AMOUNT","RATE_DAILY","PERIOD"]
[311084362,1704900645564,-500.0,0.00030136,2]
[311084363,1704900645574,-500.0,0.00030136,2]
[311084364,1704900645583,-500.0,0.00030136,2]
[311084365,1704900645592,-500.0,0.00030136,2]
[311084366,1704900645601,-500.0,0.00030136,2]
[311084367,1704900645610,-504.81,0.00030136,2]
[311084368,1704900645619,-500.0,0.00030136,2]
[311084369,1704900645628,-500.0,0.00030136,2]
[311084371,1704900645636,-500.0,0.00030136,2]
[311084373,1704900645645,-500.0,0.00030136,2]
[311084375,1704900645655,-500.0,0.00030136,2]
[311084377,1704900645665,-500.0,0.00030136,2]
[311084379,1704900645674,-897.0,0.00030136,2]
[311084381,1704900645683,-500.0,0.00030136,2]
[311084383,1704900645693,-1597.96,0.00030136,2]
[311084385,1704900645702,-500.0,0.00030136,2]
[311084388,1704900645711,-609.86,0.00030136,2]
[311084391,1704900645721,-500.0,0.00030136,2]
[311084393,1704900645730,-500.0,0.00030136,2]
[311084395,1704900645739,-500.0,0.00030136,2]
[311084396,1704900645750,-500.0,0.00030136,2]
[311084400,1704900645759,-511.13284769,0.00030136,2]
[311084402,1704900645768,-500.0,0.00030136,2]
[311084406,1704900645777,-500.0,0.00030136,2]
[311084409,1704900645786,-500.0,0.00030136,2]
[311084412,1704900645796,-500.0,0.00030136,2]
[311084416,1704900645805,-500.0,0.00030136,2]
[311084420,1704900645814,-500.0,0.00030136,2]
[311084424,1704900645823,-500.0,0.00030136,2]
[311084428,1704900645832,-500.0,0.00030136,2]
[311084433,1704900645841,-500.0,0.00030136,2]
[311084438,1704900645850,-500.0,0.00030136,2]
[311084442,1704900645859,-305.60095611,0.00030136,2]
[311084444,1704900645868,-500.0,0.00030136,2]
[311084448,1704900645877,-500.0,0.00030136,2]
[311084452,1704900645886,-500.0,0.00030136,2]
[311084456,1704900645895,-500.0,0.00030136,2]
[311084459,1704900645904,-500.0,0.00030136,2]
[311084463,1704900645913,-500.0,0.00030136,2]
[311084466,1704900645922,-500.0,0.00030136,2]
[311084468,1704900645931,-625.42,0.00030136,2]
[311084471,1704900645941,-500.0,0.00030136,2]
[311084473,1704900645950,-500.0,0.00030136,2]
[311084475,1704900645959,-500.0,0.00030136,2]
[311084477,1704900645968,-500.0,0.00030136,2]
[311084479,1704900645977,-411.4559499,0.00030136,2]
[311084481,1704900645986,-500.0,0.00030136,2]
[311084483,1704900645995,-1088.6,0.00030136,2]
[311084485,1704900646006,-500.0,0.00030136,2]
[311084487,1704900646016,-500.0,0.00030136,2]
[311084489,1704900646025,-500.0,0.00030136,2]
[311084491,1704900646034,-500.0,0.00030136,2]
[311084493,1704900646043,-785.49,0.00030136,2]
[311084495,1704900646053,-975.89,0.00030136,2]
[311084497,1704900646062,-500.0,0.00030136,2]
[311084499,1704900646072,-1305.85,0.00030136,2]
[311084501,1704900646081,-500.0,0.00030136,2]
[311084503,1704900646090,-500.0,0.00030136,2]
[311084504,1704900646099,-500.0,0.00030136,2]
[311084506,1704900646108,-500.0,0.00030136,2]
[311084508,1704900646117,-500.0,0.00030136,2]
[311084511,1704900646127,-1671.48,0.00030136,2]
[311084514,1704900646136,-500.0,0.00030136,2]
[311084516,1704900646146,-500.0,0.00030136,2]
[311084518,1704900646154,-1079.69,0.00030136,2]
[311084520,1704900646164,-500.0,0.00030136,2]
[311084522,1704900646173,-500.0,0.00030136,2]
[311084524,1704900646182,-1708.78,0.00030136,2]
[311084526,1704900646191,-500.0,0.00030136,2]
[311084529,1704900646200,-500.0,0.00030136,2]
[311084532,1704900646210,-500.0,0.00030136,2]
[311084533,1704900646219,-12281.0,0.00030136,2]
[311084534,1704900646229,-500.0,0.00030136,2]
[311084535,1704900646239,-500.0,0.00030136,2]
[311084536,1704900646249,-782.34,0.00030136,2]
[311084537,1704900646259,-500.0,0.00030136,2]
[311084538,1704900646268,-500.0,0.00030136,2]
[311084539,1704900646278,-500.0,0.00030136,2]
[311084540,1704900646287,-4515.22,0.00030136,2]
[311084541,1704900646296,-500.0,0.00030136,2]
[311084542,1704900646305,-500.0,0.00030136,2]
[311084543,1704900646314,-8836.14,0.00030136,2]
[311084544,1704900646323,-500.0,0.00030136,2]
[311084545,1704900646333,-707.11,0.00030136,2]
[311084546,1704900646343,-500.0,0.00030136,2]
[311084547,1704900646352,-500.0,0.00030136,2]
[311084548,1704900646361,-500.0,0.00030136,2]
[311084549,1704900646371,-884.97,0.00030136,2]
[311084550,1704900646380,-2259.76,0.00030136,2]
[311084551,1704900646389,-616.1,0.00030136,2]
[311084552,1704900646399,-500.0,0.00030136,2]
[311084553,1704900646408,-3899.84,0.00030136,2]
[311084554,1704900646418,-500.0,0.00030136,2]
[311084555,1704900646427,-500.0,0.00030136,2]
[311084556,1704900646436,-500.0,0.00030136,2]
[311084557,1704900646445,-500.0,0.00030136,2]
[311084558,1704900646454,-500.0,0.00030136,2]
[311084559,1704900646463,-615.33,0.00030136,2]
[311084560,1704900646472,-4323.21,0.00030136,2]
[311084561,1704900646481,-1420.6,0.00030136,2]
[311084562,1704900646490,-500.0,0.00030136,2]
[311084563,1704900646499,-500.0,0.00030136,2]
[311084564,1704900646509,-2046.46,0.00030136,2]
[311084565,1704900646519,-4599.5,0.00030136,2]
[311084566,1704900646528,-712.95,0.00030136,2]
[311084567,1704900646537,-500.0,0.00030136,2]
[311084568,1704900646546,-500.0,0.00030136,2]
[311084569,1704900646556,-500.0,0.00030136,2]
[311084570,1704900646565,-500.0,0.00030136,2]
[311084571,1704900646574,-795.41,0.00030136,2]
[311084572,1704900646583,-2281.05,0.00030136,2]
[311084573,1704900646593,-500.0,0.00030136,2]
[311084574,1704900646601,-2521.56,0.00030136,2]
[311084575,1704900646611,-500.0,0.00030136,2]
[311084576,1704900646620,-500.0,0.00030136,2]
[311084577,1704900646629,-843.45,0.00030136,2]
[311084578,1704900646638,-500.0,0.00030136,2]
[311084579,1704900646647,-500.0,0.00030136,2]
[311084580,1704900646656,-500.0,0.00030136,2]
[311084581,1704900646665,-870.26,0.00030136,2]
[311084582,1704900646675,-732.44,0.00030136,2]
[311084583,1704900646684,-1564.13,0.00030136,2]
[311084584,1704900646693,-500.0,0.00030136,2]
[311084585,1704900646702,-500.0,0.00030136,2]
[311084586,1704900646711,-500.0,0.00030136,2]
[311084587,1704900646720,-500.0,0.00030136,2]
[311084588,1704900646730,-627.62,0.00030136,2]
[311084589,1704900646739,-1143.64,0.00030136,2]
[311084590,1704900646750,-1380.85,0.00030136,2]
[311084591,1704900646759,-500.0,0.00030136,2]
[311084592,1704900646768,-500.0,0.00030136,2]
[311084593,1704900646777,-500.0,0.00030136,2]
[311084594,1704900646787,-500.0,0.00030136,2]
[311084595,1704900646796,-500.0,0.00030136,2]
[311084596,1704900646806,-500.0,0.00030136,2]
[311084597,1704900646815,-500.0,0.00030136,2]
[311084598,1704900646824,-1618.66,0.00030136,2]
[311084599,1704900646834,-1036.15,0.00030136,2]
[311084600,1704900646843,-9748.06,0.00030136,2]
[311084601,1704900646852,-500.0,0.00030136,2]
[311084602,1704900646861,-566.17,0.00030136,2]
[311084603,1704900646870,-299.0,0.00030136,2]
[311084604,1704900646879,-553.16,0.00030136,2]
[311084605,1704900646888,-500.0,0.00030136,2]
[311084606,1704900646897,-500.0,0.00030136,2]
[311084607,1704900646907,-500.0,0.00030136,2]
[311084608,1704900646916,-500.0,0.00030136,2]
[311084609,1704900646925,-948.2,0.00030136,2]
[311084610,1704900646934,-500.0,0.00030136,2]
[311084611,1704900646943,-609.23,0.00030136,2]
[311084612,1704900646952,-500.0,0.00030136,2]
[311084613,1704900646961,-500.0,0.00030136,2]
[311084614,1704900646970,-2892.66,0.00030136,2]
[311084615,1704900646980,-1143.5,0.00030136,2]
[311084616,1704900646989,-835.76,0.00030136,2]
[311084617,1704900647000,-580.79,0.00030136,2]
[311084618,1704900647009,-500.0,0.00030136,2]
[311084619,1704900647018,-500.0,0.00030136,2]
[311084620,1704900647027,-500.0,0.00030136,2]
[311084621,1704900647037,-500.0,0.00030136,2]
[311084622,1704900647045,-500.0,0.00030136,2]
[311084623,1704900647054,-500.0,0.00030136,2]
[311084624,1704900647064,-500.0,0.00030136,2]
[311084625,1704900647074,-500.0,0.00030136,2]
[311084626,1704900647083,-500.0,0.00030136,2]
[311084627,1704900647093,-500.0,0.00030136,2]
[311084628,1704900647103,-1063.42,0.00030136,2]
[311084629,1704900647111,-936.74,0.00030136,2]
[311084630,1704900647121,-500.0,0.00030136,2]
[311084631,1704900647130,-500.0,0.00030136,2]
[311084632,1704900647140,-559.16,0.00030136,2]
[311084633,1704900647150,-500.0,0.00030136,2]
[311084634,1704900647160,-1234.82,0.00030136,2]
[311084635,1704900647170,-3117.76,0.00030136,2]
[311084636,1704900647179,-500.0,0.00030136,2]
[311084637,1704900647189,-660.85,0.00030136,2]
[311084638,1704900647199,-681.75,0.00030136,2]
[311084639,1704900647208,-500.0,0.00030136,2]
[311084640,1704900647217,-532.39,0.00030136,2]
[311084641,1704900647227,-1276.4,0.00030136,2]
[311084642,1704900647236,-540.08,0.00030136,2]
[311084643,1704900647245,-500.0,0.00030136,2]
[311084644,1704900647259,-1062.18,0.00030136,2]
[311084645,1704900647268,-500.0,0.00030136,2]
[311084646,1704900647277,-500.0,0.00030136,2]
[311084647,1704900647286,-765.99,0.00030136,2]
[311084648,1704900647296,-28468.17,0.00030136,2]
[311084649,1704900647305,-500.0,0.00030136,2]
[311084650,1704900647314,-542.15,0.00030136,2]
[311084651,1704900647323,-2759.59,0.00030136,2]
[311084652,1704900647333,-500.0,0.00030136,2]
[311084653,1704900647342,-700.16,0.00030136,2]
[311084654,1704900647351,-671.02,0.00030136,2]
[311084655,1704900647360,-500.0,0.00030136,2]
[311084656,1704900647370,-500.0,0.00030136,2]
[311084657,1704900647379,-500.0,0.00030136,2]
[311084658,1704900647389,-500.0,0.00030136,2]
[311084659,1704900647401,-1369.41,0.00030136,2]
[311084660,1704900647410,-500.0,0.00030136,2]
[311084661,1704900647419,-824.64,0.00030136,2]
[311084662,1704900647430,-539.29,0.00030136,2]
[311084663,1704900647439,-1279.73,0.00030136,2]
[311084664,1704900647448,-500.0,0.00030136,2]
[311084665,1704900647457,-530.15,0.00030136,2]
[311084666,1704900647466,-500.0,0.00030136,2]
[311084667,1704900647476,-1562.87,0.00030136,2]
[311084668,1704900647485,-500.0,0.00030136,2]
[311084669,1704900647494,-4484.28,0.00030136,2]
[311084670,1704900647506,-500.0,0.00030136,2]
[311084671,1704900647516,-500.0,0.00030136,2]
[311084672,1704900647525,-682.98,0.00030136,2]
[311084673,1704900647535,-5240.86,0.00030136,2]
[311084674,1704900647544,-500.0,0.00030136,2]
[311084675,1704900647554,-500.0,0.00030136,2]
[311084676,1704900647563,-500.0,0.00030136,2]
[311084677,1704900647572,-500.0,0.00030136,2]
[311084678,1704900647581,-1727.37,0.00030136,2]
[311084679,1704900647590,-1211.76,0.00030136,2]
[311084680,1704900647600,-500.0,0.00030136,2]
[311084681,1704900647609,-3480.61,0.00030136,2]
[311084682,1704900647619,-500.0,0.00030136,2]
[311084683,1704900647628,-653.43,0.00030136,2]
[311084684,1704900647637,-500.0,0.00030136,2]
[311084685,1704900647646,-547.15,0.00030136,2]
[311084686,1704900647656,-654.46,0.00030136,2]
[311084687,1704900647665,-1452.5,0.00030136,2]
[311084688,1704900647674,-500.0,0.00030136,2]
[311084689,1704900647683,-1039.32,0.00030136,2]
[311084690,1704900647693,-500.0,0.00030136,2]
[311084691,1704900647702,-500.0,0.00030136,2]
[311084692,1704900647712,-500.0,0.00030136,2]
[311084693,1704900647721,-500.0,0.00030136,2]
[311084694,1704900647731,-500.0,0.00030136,2]
[311084695,1704900647740,-1358.05,0.00030136,2]
[311084696,1704900647751,-500.0,0.00030136,2]
[311084697,1704900647760,-500.0,0.00030136,2]
[311084698,1704900647769,-1748.9,0.00030136,2]
[311084699,1704900647778,-1679.87,0.00030136,2]
[311084700,1704900647787,-500.0,0.00030136,2]
[311084701,1704900647796,-500.0,0.00030136,2]
[311084702,1704900647805,-1298.43,0.00030136,2]
[311084703,1704900647815,-500.0,0.00030136,2]
[311084704,1704900647825,-709.8,0.00030136,2]
[311084705,1704900647834,-500.0,0.00030136,2]
[311084706,1704900647843,-500.0,0.00030136,2]
[311084707,1704900647853,-887.15,0.00030136,2]
[311084708,1704900647862,-500.0,0.00030136,2]
[311084709,1704900647871,-782.21,0.00030136,2]
[311084710,1704900647880,-500.0,0.00030136,2]
[311084711,1704900647890,-1199.95,0.00030136,2]
[311084712,1704900647899,-8279.8,0.00030136,2]
[311084713,1704900647908,-500.0,0.00030136,2]
[311084714,1704900647917,-7290.58,0.00030136,2]
[311084715,1704900647927,-3604.72,0.00030136,2]
[311084716,1704900647936,-1664.94,0.00030136,2]
[311084717,1704900647945,-500.0,0.00030136,2]
[311084718,1704900647954,-500.0,0.00030136,2]
[311084719,1704900647963,-500.0,0.00030136,2]
[311084720,1704900647972,-619.18,0.00030136,2]
[311084721,1704900647981,-588.0,0.00030136,2]
[311084722,1704900647990,-500.0,0.00030136,2]
[311084723,1704900648000,-500.0,0.00030136,2]
[311084724,1704900648009,-164.87695483,0.00030136,2]
[311084725,1704900648019,-500.0,0.00030136,2]
[311084726,1704900648029,-500.0,0.00030136,2]
[311084727,1704900648038,-1381.97,0.00030136,2]
[311084728,1704900648047,-766.49,0.00030136,2]
[311084729,1704900648056,-714.61,0.00030136,2]
[311084730,1704900648065,-1425.14,0.00030136,2]
[311084731,1704900648073,-500.0,0.00030136,2]
[311084732,1704900648082,-1479.95,0.00030136,2]
[311084733,1704900648090,-2002.23,0.00030136,2]
[311084734,1704900648099,-651.45,0.00030136,2]
[311084735,1704900648107,-455.00861939,0.00030136,2]
[311084736,1704900648116,-2937.34,0.00030136,2]
[311084737,1704900648125,-500.0,0.00030136,2]
[311084738,1704900648135,-1124.46,0.00030136,2]
[311084739,1704900648144,-979.93,0.00030136,2]
[311084740,1704900648153,-500.0,0.00030136,2]
[311084741,1704900648162,-500.0,0.00030136,2]
[311084742,1704900648175,-500.0,0.00030136,2]
[311084743,1704900648184,-151.14514385,0.00030136,2]
[311084744,1704900648193,-800.83,0.00030136,2]
[311084745,1704900648203,-667.52,0.00030136,2]
[311084746,1704900648213,-753.48,0.00030136,2]
[311084747,1704900648222,-579.58,0.00030136,2]
[311084748,1704900648231,-862.17,0.00030136,2]
[311084749,1704900648241,-500.0,0.00030136,2]
[311084750,1704900648252,-500.0,0.00030136,2]
[311084751,1704900648261,-2898.57,0.00030136,2]
[311084752,1704900648270,-500.0,0.00030136,2]
[311084753,1704900648279,-500.0,0.00030136,2]
[311084754,1704900648288,-500.0,0.00030136,2]
[311084755,1704900648298,-500.0,0.00030136,2]
[311084756,1704900648307,-1266.52,0.00030136,2]
[311084757,1704900648316,-500.0,0.00030136,2]
[311084758,1704900648325,-500.0,0.00030136,2]
[311084759,1704900648334,-588.55,0.00030136,2]
[311084760,1704900648344,-500.0,0.00030136,2]
[311084761,1704900648354,-500.0,0.00030136,2]
[311084762,1704900648363,-955.19,0.00030136,2]
[311084763,1704900648372,-685.11,0.00030136,2]
[311084764,1704900648381,-4860.5,0.00030136,2]
[311084765,1704900648390,-500.0,0.00030136,2]
[311084766,1704900648399,-2271.39,0.00030136,2]
[311084767,1704900648408,-153.84,0.00030137,2]
[311084768,1704900648418,-500.0,0.00030153,2]
[311084769,1704900648427,-366.57825023,0.00030231,5]
[311084770,1704900648437,-26686.47276514,0.00030307,2]
[311084771,1704900648449,-500.99549908,0.0003031,2]
[311084772,1704900648460,-220.32632948,0.0003031,2]
[311084773,1704900648471,-6230.43794296,0.0003031,2]
[311084774,1704900648481,-2443.72370268,0.0003031,2]
[311084775,1704900648492,-1367.0894513,0.0003031,2]
[311084776,1704900648507,-412.87,0.00030372,2]
[311084777,1704900648517,-500.0,0.00030386,2]
[311084778,1704900648527,-450.23884783,0.00030409,2]
[311084779,1704900648540,-353.56364433,0.00030409,2]
[311084780,1704900648549,-425.6,0.00030409,2]
[311084781,1704900648560,-500.0,0.00030409,2]
[311084782,1704900648569,-500.0,0.00030409,2]
[311084783,1704900648578,-226.74835282,0.00030409,2]
[311084784,1704900648587,-500.0,0.0003041,2]
[311084785,1704900648597,-500.0,0.0003041,2]
[311084786,1704900648606,-500.0,0.0003041,2]
[311084787,1704900648615,-204.22,0.0003041,2]
[311084788,1704900648624,-500.0,0.0003041,2]
[311084789,1704900648634,-500.0,0.0003041,2]
[311084790,1704900648643,-505.9718729,0.0003041,2]
[311084791,1704900648653,-500.0,0.0003041,2]
[311084792,1704900648662,-500.0,0.0003041,2]
[311084793,1704900648671,-500.0,0.0003041,2]
[311084794,1704900648681,-500.0,0.0003041,2]
[311084795,1704900648690,-500.0,0.0003041,2]
[311084796,1704900648700,-500.0,0.0003041,2]
[311084797,1704900648709,-500.0,0.0003041,2]
[311084798,1704900648718,-500.0,0.0003041,2]
[311084799,1704900648726,-500.0,0.0003041,2]
[311084800,1704900648736,-500.0,0.0003041,2]
[311084801,1704900648745,-500.0,0.0003041,2]
[311084802,1704900648758,-500.0,0.0003041,2]
[311084803,1704900648767,-500.0,0.0003041,2]
[311084804,1704900648776,-500.0,0.0003041,2]
[311084805,1704900648785,-500.0,0.0003041,2]
[311084806,1704900648793,-500.0,0.0003041,2]
[311084807,1704900648802,-500.0,0.0003041,2]
[311084808,1704900648811,-500.0,0.0003041,2]
[311084809,1704900648821,-500.0,0.0003041,2]
[311084810,1704900648830,-500.0,0.0003041,2]
[311084811,1704900648839,-500.0,0.0003041,2]
[311084812,1704900648848,-500.0,0.0003041,2]
[311084813,1704900648857,-500.0,0.0003041,2]
[311084814,1704900648866,-500.0,0.0003041,2]
[311084815,1704900648875,-500.0,0.0003041,2]
[311084816,1704900648883,-500.0,0.0003041,2]
[311084817,1704900648893,-1021.1,0.0003041,2]
[311084818,1704900648902,-500.0,0.0003041,2]
[311084819,1704900648911,-500.0,0.0003041,2]
[311084820,1704900648920,-500.0,0.0003041,2]
[311084821,1704900648929,-500.0,0.0003041,2]
[311084822,1704900648938,-500.0,0.0003041,2]
[311084823,1704900648947,-500.0,0.0003041,2]
[311084824,1704900648956,-500.0,0.0003041,2]
[311084825,1704900648966,-500.0,0.0003041,2]
[311084826,1704900648975,-500.0,0.0003041,2]
[311084827,1704900648984,-500.0,0.0003041,2]
[311084828,1704900648993,-500.0,0.0003041,2]
[311084829,1704900649008,-500.0,0.0003041,2]
[311084830,1704900649017,-500.0,0.0003041,2]
[311084831,1704900649026,-500.0,0.0003041,2]
[311084832,1704900649035,-500.0,0.0003041,2]
[311084833,1704900649045,-500.0,0.0003041,2]
[311084834,1704900649054,-500.0,0.0003041,2]
[311084835,1704900649064,-500.0,0.0003041,2]
[311084836,1704900649073,-500.0,0.0003041,2]
[311084837,1704900649082,-500.0,0.0003041,2]
[311084838,1704900649091,-531.05957915,0.0003041,2]
[311084839,1704900649100,-500.0,0.0003041,2]
[311084840,1704900649109,-500.0,0.0003041,2]
[311084841,1704900649118,-735.94,0.0003041,2]
[311084842,1704900649127,-500.0,0.0003041,2]
[311084843,1704900649136,-254.75653314,0.0003041,2]
[311084844,1704900649145,-655.58,0.0003041,2]
[311084845,1704900649154,-500.0,0.0003041,2]
[311084846,1704900649163,-419.43843701,0.0003041,2]
[311084847,1704900649172,-561.71339847,0.0003041,2]
[311084848,1704900649181,-500.0,0.0003041,2]
[311084849,1704900649191,-500.0,0.0003041,2]
[311084850,1704900649301,-500.0,0.0003041,2]
[311084851,1704900649317,-500.0,0.0003041,2]
[311084852,1704900649327,-991.96,0.0003041,2]
[311084853,1704900649336,-471.68267197,0.0003041,2]
[311084854,1704900649345,-500.0,0.0003041,2]
[311084855,1704900649354,-500.0,0.0003041,2]
[311084856,1704900649364,-349.71735488,0.0003041,2]
[311084857,1704900649373,-500.0,0.0003041,2]
[311084858,1704900649384,-442.50965824,0.0003041,2]
[311084859,1704900649393,-580.21,0.0003041,2]
[311084860,1704900649406,-167.35601712,0.0003041,2]
[311084861,1704900649416,-500.0,0.0003041,2]
[311084862,1704900649426,-498.5182693,0.0003041,2]
[311084863,1704900649436,-500.0,0.0003041,2]
[311084864,1704900649445,-500.0,0.0003041,2]
[311084865,1704900649454,-500.0,0.0003041,2]
[311084866,1704900649464,-500.0,0.0003041,2]
[311084867,1704900649473,-500.0,0.0003041,2]
[311084868,1704900649484,-500.0,0.0003041,2]
[311084869,1704900649495,-500.0,0.0003041,2]
[311084870,1704900649507,-500.0,0.0003041,2]
[311084871,1704900649517,-500.0,0.0003041,2]
[311084872,1704900649526,-500.0,0.0003041,2]
[311084873,1704900649536,-310.98003998,0.0003041,2]
[311084874,1704900649545,-612.21,0.0003041,2]
[311084875,1704900649554,-216.98146701,0.0003041,2]
[311084876,1704900649564,-500.0,0.0003041,2]
[311084877,1704900649574,-500.0,0.0003041,2]
[311084878,1704900649583,-500.0,0.0003041,2]
[311084879,1704900649592,-500.0,0.0003041,2]
[311084880,1704900649602,-500.0,0.0003041,2]
[311084881,1704900649612,-500.0,0.0003041,2]
[311084882,1704900649621,-424.51552244,0.0003041,2]
[311084883,1704900649631,-500.0,0.0003041,2]
[311084884,1704900649641,-575.33061289,0.0003041,2]
[311084885,1704900649651,-500.0,0.0003041,2]
[311084886,1704900649660,-500.0,0.0003041,2]
[311084887,1704900649669,-500.0,0.0003041,2]
[311084888,1704900649679,-500.0,0.0003041,2]
[311084889,1704900649688,-500.0,0.0003041,2]
[311084890,1704900649698,-500.0,0.0003041,2]
[311084891,1704900649707,-500.0,0.0003041,2]
[311084892,1704900649717,-500.0,0.0003041,2]
[311084893,1704900649727,-500.0,0.0003041,2]
[311084894,1704900649736,-500.0,0.0003041,2]
[311084895,1704900649746,-500.0,0.0003041,2]
[311084896,1704900649758,-500.0,0.0003041,2]
[311084897,1704900649768,-500.0,0.0003041,2]
[311084898,1704900649777,-500.0,0.0003041,2]
[311084899,1704900649790,-500.0,0.0003041,2]
[311084900,1704900649799,-500.0,0.0003041,2]
[311084901,1704900649809,-1525.56,0.0003041,2]
[311084902,1704900649819,-500.0,0.0003041,2]
[311084903,1704900649829,-500.0,0.0003041,2]
[311084904,1704900649838,-500.0,0.0003041,2]
[311084905,1704900649848,-580.29748894,0.0003041,2]
[311084906,1704900649858,-628.53784333,0.0003041,2]
[311084907,1704900649868,-500.0,0.0003041,2]
[311084908,1704900649877,-728.56,0.0003041,2]
[311084909,1704900649887,-500.0,0.0003041,4]
[311084910,1704900649896,-1118.0,0.0003041,2]
[311084911,1704900649906,-500.0,0.0003041,2]
[311084912,1704900649916,-500.0,0.0003041,2]
[311084913,1704900649925,-500.0,0.0003041,2]
[311084914,1704900649935,-500.0,0.0003041,2]
[311084915,1704900649945,-500.0,0.0003041,2]
[311084916,1704900649954,-515.88,0.0003041,2]
[311084917,1704900649964,-229.78646042,0.0003041,2]
[311084918,1704900649974,-500.0,0.0003041,2]
[311084919,1704900649984,-500.0,0.0003041,2]
[311084920,1704900649993,-923.52,0.0003041,2]
[311084921,1704900650004,-500.0,0.0003041,2]
[311084922,1704900650013,-174.91640772,0.0003041,2]
[311084923,1704900650021,-500.0,0.0003041,2]
[311084924,1704900650031,-500.0,0.0003041,2]
[311084925,1704900650040,-500.0,0.0003041,2]
[311084926,1704900650049,-500.0,0.0003041,2]
[311084927,1704900650059,-817.14,0.0003041,2]
[311084928,1704900650068,-500.0,0.0003041,2]
[311084929,1704900650078,-500.0,0.0003041,2]
[311084930,1704900650087,-500.0,0.0003041,2]
[311084931,1704900650097,-500.0,0.0003041,2]
[311084932,1704900650106,-500.0,0.0003041,2]
[311084933,1704900650116,-500.0,0.0003041,2]
[311084934,1704900650125,-500.0,0.0003041,2]
[311084935,1704900650135,-500.0,0.0003041,2]
[311084936,1704900650145,-500.0,0.0003041,2]
[311084937,1704900650154,-500.0,0.0003041,2]
[311084938,1704900650164,-500.0,0.0003041,2]
[311084939,1704900650174,-500.0,0.0003041,2]
[311084940,1704900650183,-500.0,0.0003041,2]
[311084941,1704900650192,-500.0,0.0003041,2]
[311084942,1704900650201,-500.0,0.0003041,2]
[311084943,1704900650211,-500.0,0.0003041,2]
[311084944,1704900650220,-500.0,0.0003041,2]
[311084945,1704900650230,-592.30166441,0.0003041,2]
[311084946,1704900650239,-500.0,0.0003041,2]
[311084947,1704900650248,-2525.24,0.0003041,2]
[311084948,1704900650259,-370.49918629,0.0003041,2]
[311084949,1704900650268,-500.0,0.0003041,2]
[311084950,1704900650278,-500.0,0.0003041,2]
[311084951,1704900650288,-500.0,0.0003041,2]
[311084952,1704900650298,-361.9373342,0.0003041,2]
[311084953,1704900650308,-500.0,0.0003041,2]
[311084954,1704900650318,-500.0,0.0003041,2]
[311084955,1704900650327,-500.0,0.0003041,2]
[311084956,1704900650337,-500.0,0.0003041,2]
[311084957,1704900650347,-500.0,0.0003041,2]
[311084958,1704900650357,-500.0,0.0003041,2]
[311084959,1704900650368,-500.0,0.0003041,2]
[311084960,1704900650378,-500.0,0.0003041,2]
[311084961,1704900650388,-368.21916751,0.0003041,2]